[Event "*** Titled Tuesday Blitz"]
[Site "Chess.com"]
[Date "2020.04.14"]
[Round "6"]
[White "DrBergerBerger"]
[Black "pichonazo"]
[Result "1-0"]
[WhiteElo "2516"]
[BlackElo "2545"]
[TimeControl "180+1"]
[EndTime "11:01:19 PDT"]
[Termination "DrBergerBerger won by resignation"]

1. e4 {[%clk 0:03:00.9]} 1... Nc6 {[%clk 0:02:59.4]} 2. Nf3 {[%clk 0:02:55.3]}
2... d6 {[%clk 0:02:59.3]} 3. d4 {[%clk 0:02:51.9]} 3... Nf6 {[%clk 0:02:59.1]}
4. Nc3 {[%clk 0:02:51.1]} 4... Bg4 {[%clk 0:02:59.3]} 5. Be3 {[%clk 0:02:39.5]}
5... e5 {[%clk 0:02:58.6]} 6. Bb5 {[%clk 0:02:22.8]} 6... exd4 {[%clk
0:02:56.1]} 7. Qxd4 {[%clk 0:02:14.6]} 7... Be7 {[%clk 0:02:53.8]} 8. O-O-O
{[%clk 0:01:46.1]} 8... O-O {[%clk 0:02:52]} 9. Bxc6 {[%clk 0:01:41.2]} 9...
bxc6 {[%clk 0:02:52.5]} 10. h3 {[%clk 0:01:21.1]} 10... Bxf3 {[%clk 0:02:47.1]}
11. gxf3 {[%clk 0:01:22]} 11... Nd7 {[%clk 0:02:46.6]} 12. f4 {[%clk 0:01:15.4]}
12... Nc5 {[%clk 0:02:26.1]} 13. Rhg1 {[%clk 0:01:09.1]} 13... g6 {[%clk
0:02:20.9]} 14. f5 {[%clk 0:00:49.9]} 14... Bf6 {[%clk 0:02:16.9]} 15. Qc4
{[%clk 0:00:48]} 15... Qe7 {[%clk 0:02:02.4]} 16. Bxc5 {[%clk 0:00:41.1]} 16...
dxc5 {[%clk 0:02:02.6]} 17. Rde1 {[%clk 0:00:33.4]} 17... Kh8 {[%clk 0:01:58.5]}
18. e5 {[%clk 0:00:29.7]} 18... Bxe5 {[%clk 0:01:51.3]} 19. f4 {[%clk
0:00:27.6]} 19... Bxf4+ {[%clk 0:01:42]} 20. Qxf4 {[%clk 0:00:27]} 20... Qf6
{[%clk 0:01:42.6]} 21. Ne4 {[%clk 0:00:25.8]} 21... Qd4 {[%clk 0:01:37.4]} 22.
c3 {[%clk 0:00:23.5]} 1-0

[Event "*** Titled Tuesday Blitz"]
[Site "Chess.com"]
[Date "2020.04.14"]
[Round "6"]
[White "GMSrinath"]
[Black "Talcrifice"]
[Result "1-0"]
[WhiteElo "2779"]
[BlackElo "2548"]
[TimeControl "180+1"]
[EndTime "11:01:20 PDT"]
[Termination "GMSrinath won by resignation"]

1. e4 {[%clk 0:03:00.9]} 1... e5 {[%clk 0:02:59.8]} 2. Nf3 {[%clk 0:03:01.2]}
2... Nc6 {[%clk 0:02:59.3]} 3. Bb5 {[%clk 0:03:01.9]} 3... a6 {[%clk 0:02:59.4]}
4. Ba4 {[%clk 0:03:01.8]} 4... Nf6 {[%clk 0:02:59.7]} 5. O-O {[%clk 0:03:01.6]}
5... Be7 {[%clk 0:03:00]} 6. Re1 {[%clk 0:03:01.5]} 6... b5 {[%clk 0:02:59.4]}
7. Bb3 {[%clk 0:03:02]} 7... O-O {[%clk 0:02:59.9]} 8. c3 {[%clk 0:03:02.6]}
8... d5 {[%clk 0:02:59.6]} 9. exd5 {[%clk 0:03:02.9]} 9... Nxd5 {[%clk
0:03:00.1]} 10. Nxe5 {[%clk 0:03:03.6]} 10... Nxe5 {[%clk 0:03:00.7]} 11. Rxe5
{[%clk 0:03:04.5]} 11... c6 {[%clk 0:03:00.8]} 12. d3 {[%clk 0:03:04.1]} 12...
Bd6 {[%clk 0:03:00.2]} 13. Re1 {[%clk 0:03:04.6]} 13... Bf5 {[%clk 0:03:00.3]}
14. Qf3 {[%clk 0:03:02.4]} 14... Re8 {[%clk 0:03:00.5]} 15. Rxe8+ {[%clk
0:03:00.8]} 15... Qxe8 {[%clk 0:03:01.4]} 16. Nd2 {[%clk 0:03:01.4]} 16... Qe1+
{[%clk 0:03:00.4]} 17. Nf1 {[%clk 0:03:02]} 17... Bg6 {[%clk 0:02:57.5]} 18. Bd1
{[%clk 0:02:56.7]} 18... Re8 {[%clk 0:02:31.1]} 19. Bd2 {[%clk 0:02:48.3]} 19...
Qe6 {[%clk 0:02:27.9]} 20. Bb3 {[%clk 0:02:42]} 20... Qd7 {[%clk 0:02:18.6]} 21.
a4 {[%clk 0:02:36.8]} 21... Nf6 {[%clk 0:02:12.8]} 22. axb5 {[%clk 0:01:50.4]}
22... axb5 {[%clk 0:02:12.4]} 23. Ra6 {[%clk 0:01:49]} 23... Rc8 {[%clk
0:02:03.8]} 24. Bg5 {[%clk 0:01:31.1]} 24... b4 {[%clk 0:01:48.5]} 25. Bxf6
{[%clk 0:01:19.2]} 25... gxf6 {[%clk 0:01:47.4]} 26. d4 {[%clk 0:01:19]} 26...
c5 {[%clk 0:01:40.4]} 27. Qd5 {[%clk 0:01:14.4]} 27... Rd8 {[%clk 0:01:28.7]}
28. dxc5 {[%clk 0:01:12.8]} 28... Bxh2+ {[%clk 0:01:18.3]} 29. Kxh2 {[%clk
0:01:13.7]} 29... Qxd5 {[%clk 0:01:18.7]} 30. Bxd5 {[%clk 0:01:13.5]} 30... Rxd5
{[%clk 0:01:19.6]} 31. Ra8+ {[%clk 0:01:14.2]} 31... Kg7 {[%clk 0:01:18.8]} 32.
cxb4 {[%clk 0:01:15.1]} 32... Rd4 {[%clk 0:01:18.9]} 33. c6 {[%clk 0:01:13.4]}
1-0

[Event "*** Titled Tuesday Blitz"]
[Site "Chess.com"]
[Date "2020.04.14"]
[Round "6"]
[White "jwillz14"]
[Black "TudorAnton"]
[Result "0-1"]
[WhiteElo "2393"]
[BlackElo "2592"]
[TimeControl "180+1"]
[EndTime "11:01:26 PDT"]
[Termination "TudorAnton won by resignation"]

1. Nf3 {[%clk 0:03:00.9]} 1... d5 {[%clk 0:02:59.4]} 2. g3 {[%clk 0:03:01.5]}
2... Bg4 {[%clk 0:02:58.8]} 3. Bg2 {[%clk 0:03:02.4]} 3... Nd7 {[%clk
0:02:55.8]} 4. c4 {[%clk 0:03:02]} 4... e6 {[%clk 0:02:54.7]} 5. cxd5 {[%clk
0:03:01.6]} 5... exd5 {[%clk 0:02:55.6]} 6. Qa4 {[%clk 0:02:56.2]} 6... Bxf3
{[%clk 0:02:53.8]} 7. Bxf3 {[%clk 0:02:57.1]} 7... c6 {[%clk 0:02:54.2]} 8. O-O
{[%clk 0:02:57.1]} 8... Ngf6 {[%clk 0:02:53.4]} 9. d3 {[%clk 0:02:57]} 9... Be7
{[%clk 0:02:53.8]} 10. Nc3 {[%clk 0:02:57.3]} 10... O-O {[%clk 0:02:53.5]} 11.
Rb1 {[%clk 0:02:57.7]} 11... Re8 {[%clk 0:02:51.6]} 12. b4 {[%clk 0:02:57.1]}
12... a5 {[%clk 0:02:48.2]} 13. b5 {[%clk 0:02:57.4]} 13... Bb4 {[%clk 0:02:48]}
14. Bd2 {[%clk 0:02:48.5]} 14... Ne5 {[%clk 0:02:46.1]} 15. bxc6 {[%clk
0:02:42.3]} 15... bxc6 {[%clk 0:02:38.2]} 16. d4 {[%clk 0:02:26.7]} 16... Nxf3+
{[%clk 0:02:36.6]} 17. exf3 {[%clk 0:02:27.6]} 17... Qd7 {[%clk 0:02:34.9]} 18.
a3 {[%clk 0:02:13.3]} 18... Bxc3 {[%clk 0:02:28.4]} 19. Bxc3 {[%clk 0:02:14.2]}
19... Qf5 {[%clk 0:02:28.9]} 20. Kg2 {[%clk 0:02:10.5]} 20... h5 {[%clk
0:02:22.4]} 21. h4 {[%clk 0:02:05.8]} 21... Re2 {[%clk 0:02:18.6]} 22. Rfe1
{[%clk 0:01:42.7]} 22... Rae8 {[%clk 0:02:11.3]} 23. Rxe2 {[%clk 0:01:31.3]}
23... Rxe2 {[%clk 0:02:12.2]} 24. Re1 {[%clk 0:01:31.4]} 24... Rc2 {[%clk
0:02:07]} 25. Bxa5 {[%clk 0:01:12.1]} 25... Ng4 {[%clk 0:01:58.5]} 26. Qxc2
{[%clk 0:00:54]} 26... Qxc2 {[%clk 0:01:59.4]} 27. fxg4 {[%clk 0:00:54.6]} 27...
hxg4 {[%clk 0:01:59.2]} 28. Bb4 {[%clk 0:00:55.2]} 28... Qd3 {[%clk 0:01:45.6]}
29. Bc5 {[%clk 0:00:55.6]} 29... f5 {[%clk 0:01:43.3]} 30. Re6 {[%clk
0:00:51.1]} 30... Qf3+ {[%clk 0:01:42]} 31. Kg1 {[%clk 0:00:50.9]} 31... f4
{[%clk 0:01:42.6]} 32. gxf4 {[%clk 0:00:48.5]} 32... g3 {[%clk 0:01:43.5]} 33.
fxg3 {[%clk 0:00:43]} 33... Qxg3+ {[%clk 0:01:43.1]} 0-1

[Event "*** Titled Tuesday Blitz"]
[Site "Chess.com"]
[Date "2020.04.14"]
[Round "6"]
[White "BAS8892"]
[Black "googlegoom"]
[Result "1-0"]
[WhiteElo "2657"]
[BlackElo "2499"]
[TimeControl "180+1"]
[EndTime "11:01:27 PDT"]
[Termination "BAS8892 won by checkmate"]

1. d4 {[%clk 0:02:53.3]} 1... d5 {[%clk 0:03:00.2]} 2. Bf4 {[%clk 0:02:52.9]}
2... Nf6 {[%clk 0:02:59.9]} 3. e3 {[%clk 0:02:53.2]} 3... e6 {[%clk 0:03:00.4]}
4. c3 {[%clk 0:02:53.4]} 4... c5 {[%clk 0:02:59.7]} 5. Nd2 {[%clk 0:02:53.1]}
5... Bd6 {[%clk 0:02:58.2]} 6. Bg3 {[%clk 0:02:52.3]} 6... Qe7 {[%clk
0:02:53.1]} 7. Ngf3 {[%clk 0:02:52.1]} 7... Nc6 {[%clk 0:02:52.6]} 8. Ne5 {[%clk
0:02:50.4]} 8... Nd7 {[%clk 0:02:51.8]} 9. f4 {[%clk 0:02:45.5]} 9... g6 {[%clk
0:02:48.1]} 10. Bb5 {[%clk 0:02:42.6]} 10... Ncxe5 {[%clk 0:02:36]} 11. fxe5
{[%clk 0:02:42.7]} 11... Bc7 {[%clk 0:02:35.7]} 12. O-O {[%clk 0:02:42.4]} 12...
a6 {[%clk 0:02:35.1]} 13. Bd3 {[%clk 0:02:39.8]} 13... b5 {[%clk 0:02:35.1]} 14.
Qe1 {[%clk 0:02:38.7]} 14... b4 {[%clk 0:02:31.1]} 15. Bh4 {[%clk 0:02:38.3]}
15... Qf8 {[%clk 0:02:30.3]} 16. Kh1 {[%clk 0:02:38.3]} 16... a5 {[%clk
0:02:28.7]} 17. e4 {[%clk 0:02:38.4]} 17... Bb7 {[%clk 0:02:27.2]} 18. exd5
{[%clk 0:02:38.6]} 18... Bxd5 {[%clk 0:02:27.6]} 19. Ne4 {[%clk 0:02:38.6]}
19... Bxe4 {[%clk 0:02:20.8]} 20. Bxe4 {[%clk 0:02:38.3]} 20... Rc8 {[%clk
0:02:14.3]} 21. cxb4 {[%clk 0:02:33.6]} 21... cxd4 {[%clk 0:02:08]} 22. bxa5
{[%clk 0:02:33]} 22... Bxe5 {[%clk 0:02:01.5]} 23. a6 {[%clk 0:02:32.1]} 23...
Bb8 {[%clk 0:02:01.5]} 24. Rc1 {[%clk 0:02:29.3]} 24... Rc5 {[%clk 0:01:52.2]}
25. b4 {[%clk 0:02:28.1]} 25... Rxc1 {[%clk 0:01:19.2]} 26. Qxc1 {[%clk
0:02:27.6]} 26... f6 {[%clk 0:01:19.8]} 27. b5 {[%clk 0:02:14]} 27... Qd6 {[%clk
0:01:15.7]} 28. Bg3 {[%clk 0:02:07.3]} 28... e5 {[%clk 0:01:14.7]} 29. Qc4
{[%clk 0:02:05.2]} 29... Ke7 {[%clk 0:01:09.6]} 30. a4 {[%clk 0:02:02.6]} 30...
Nb6 {[%clk 0:01:05.1]} 31. Qb3 {[%clk 0:02:01.6]} 31... Rc8 {[%clk 0:01:00.1]}
32. a5 {[%clk 0:02:01.3]} 32... Rc3 {[%clk 0:00:59.2]} 33. Qg8 {[%clk
0:01:59.4]} 33... Nd7 {[%clk 0:00:58.6]} 34. b6 {[%clk 0:01:55.5]} 34... Nxb6
{[%clk 0:00:46.8]} 35. axb6 {[%clk 0:01:54.7]} 35... Qxb6 {[%clk 0:00:47.3]} 36.
Qg7+ {[%clk 0:01:53.9]} 36... Ke6 {[%clk 0:00:46.4]} 37. Rxf6# {[%clk
0:01:48.4]} 1-0

[Event "*** Titled Tuesday Blitz"]
[Site "Chess.com"]
[Date "2020.04.14"]
[Round "6"]
[White "okriak"]
[Black "Azerichess"]
[Result "0-1"]
[WhiteElo "2797"]
[BlackElo "3017"]
[TimeControl "180+1"]
[EndTime "11:01:32 PDT"]
[Termination "Azerichess won by resignation"]

1. Nf3 {[%clk 0:03:00.9]} 1... Nf6 {[%clk 0:02:59.5]} 2. c4 {[%clk 0:03:01.3]}
2... c5 {[%clk 0:02:56.1]} 3. Nc3 {[%clk 0:03:01]} 3... d5 {[%clk 0:02:56]} 4.
cxd5 {[%clk 0:03:00.7]} 4... Nxd5 {[%clk 0:02:56.5]} 5. e3 {[%clk 0:03:01.1]}
5... Nxc3 {[%clk 0:02:54.6]} 6. dxc3 {[%clk 0:03:00.9]} 6... Qxd1+ {[%clk
0:02:53.4]} 7. Kxd1 {[%clk 0:03:00.7]} 7... Nc6 {[%clk 0:02:53.6]} 8. e4 {[%clk
0:02:59.3]} 8... e6 {[%clk 0:02:51.9]} 9. Kc2 {[%clk 0:02:57.8]} 9... Be7 {[%clk
0:02:52.1]} 10. Be3 {[%clk 0:02:56.2]} 10... b6 {[%clk 0:02:52.2]} 11. Nd2
{[%clk 0:02:54.6]} 11... Bb7 {[%clk 0:02:52.1]} 12. f3 {[%clk 0:02:53.1]} 12...
Rc8 {[%clk 0:02:52.6]} 13. a4 {[%clk 0:02:47.4]} 13... O-O {[%clk 0:02:52.7]}
14. Nc4 {[%clk 0:02:43.8]} 14... Rfd8 {[%clk 0:02:50.6]} 15. Bd3 {[%clk
0:02:28.6]} 15... Ba6 {[%clk 0:02:44.3]} 16. Bf1 {[%clk 0:01:44]} 16... Nd4+
{[%clk 0:02:34.7]} 17. cxd4 {[%clk 0:01:29.9]} 17... cxd4 {[%clk 0:02:35.6]} 18.
Bxd4 {[%clk 0:01:23.7]} 18... Rxd4 {[%clk 0:02:29.9]} 19. b3 {[%clk 0:01:23.4]}
19... Rcd8 {[%clk 0:02:26.7]} 20. Re1 {[%clk 0:00:45.8]} 20... Bxc4 {[%clk
0:02:15.7]} 21. Bxc4 {[%clk 0:00:40]} 21... Rd2+ {[%clk 0:02:15.8]} 22. Kc3
{[%clk 0:00:40.1]} 22... a5 {[%clk 0:02:12.2]} 23. Ba6 {[%clk 0:00:33.7]} 23...
b5 {[%clk 0:01:43.7]} 0-1

[Event "*** Titled Tuesday Blitz"]
[Site "Chess.com"]
[Date "2020.04.14"]
[Round "6"]
[White "maxsergej"]
[Black "algatar2020"]
[Result "1-0"]
[WhiteElo "2237"]
[BlackElo "1874"]
[TimeControl "180+1"]
[EndTime "11:01:40 PDT"]
[Termination "maxsergej won by checkmate"]

1. e4 {[%clk 0:02:59.8]} 1... c6 {[%clk 0:02:59.2]} 2. d4 {[%clk 0:02:59.2]}
2... d5 {[%clk 0:03:00]} 3. exd5 {[%clk 0:02:59.5]} 3... cxd5 {[%clk 0:03:00.3]}
4. c4 {[%clk 0:02:59.6]} 4... Nf6 {[%clk 0:03:00.2]} 5. Nc3 {[%clk 0:02:59.3]}
5... Nc6 {[%clk 0:03:00.3]} 6. Nf3 {[%clk 0:02:58.6]} 6... Bg4 {[%clk
0:03:00.5]} 7. c5 {[%clk 0:02:58.6]} 7... Bxf3 {[%clk 0:02:48.4]} 8. gxf3 {[%clk
0:02:42]} 8... e6 {[%clk 0:02:18.5]} 9. Bb5 {[%clk 0:02:37.4]} 9... Be7 {[%clk
0:02:13.6]} 10. Bf4 {[%clk 0:02:31.1]} 10... O-O {[%clk 0:02:08.3]} 11. Qd2
{[%clk 0:02:24.6]} 11... Nh5 {[%clk 0:02:05.9]} 12. Be3 {[%clk 0:02:20.6]} 12...
Rc8 {[%clk 0:01:36.7]} 13. Rg1 {[%clk 0:02:16.8]} 13... Bf6 {[%clk 0:01:04]} 14.
Rd1 {[%clk 0:01:59.7]} 14... g6 {[%clk 0:01:02.1]} 15. f4 {[%clk 0:01:53.6]}
15... Ng7 {[%clk 0:01:01.5]} 16. Bd3 {[%clk 0:01:40.9]} 16... Nxd4 {[%clk
0:00:51.7]} 17. Bxd4 {[%clk 0:01:38.4]} 17... Bxd4 {[%clk 0:00:51.2]} 18. Bxg6
{[%clk 0:01:23.9]} 18... Bxc3 {[%clk 0:00:44.3]} 19. Bxh7+ {[%clk 0:01:23.5]}
19... Kxh7 {[%clk 0:00:44.6]} 20. Qxc3 {[%clk 0:01:23.3]} 20... Qh4 {[%clk
0:00:28.3]} 21. Qxg7# {[%clk 0:01:17.8]} 1-0

[Event "*** Titled Tuesday Blitz"]
[Site "Chess.com"]
[Date "2020.04.14"]
[Round "6"]
[White "MrChampion_Coach"]
[Black "fabianvivasz"]
[Result "0-1"]
[WhiteElo "2328"]
[BlackElo "2228"]
[TimeControl "180+1"]
[EndTime "11:01:41 PDT"]
[Termination "fabianvivasz won by checkmate"]

1. e4 {[%clk 0:03:00.5]} 1... c5 {[%clk 0:02:59.1]} 2. Nf3 {[%clk 0:02:55.3]}
2... d6 {[%clk 0:02:59.6]} 3. c3 {[%clk 0:02:55.1]} 3... Nf6 {[%clk 0:02:59.1]}
4. Be2 {[%clk 0:02:54.5]} 4... a6 {[%clk 0:02:51.9]} 5. O-O {[%clk 0:02:53.4]}
5... e6 {[%clk 0:02:50.7]} 6. d3 {[%clk 0:02:45.7]} 6... Be7 {[%clk 0:02:49.7]}
7. Nbd2 {[%clk 0:02:45.8]} 7... O-O {[%clk 0:02:47.1]} 8. Re1 {[%clk 0:02:41.3]}
8... Nc6 {[%clk 0:02:45.3]} 9. Nf1 {[%clk 0:02:40.5]} 9... b5 {[%clk 0:02:39.7]}
10. a4 {[%clk 0:02:38.9]} 10... b4 {[%clk 0:02:38.5]} 11. Ng3 {[%clk 0:02:36.3]}
11... d5 {[%clk 0:02:34.4]} 12. e5 {[%clk 0:02:35.9]} 12... Nd7 {[%clk
0:02:34.6]} 13. d4 {[%clk 0:02:36.8]} 13... bxc3 {[%clk 0:02:26.6]} 14. bxc3
{[%clk 0:02:36.3]} 14... cxd4 {[%clk 0:02:23.9]} 15. cxd4 {[%clk 0:02:35.9]}
15... a5 {[%clk 0:02:21]} 16. Ba3 {[%clk 0:02:36]} 16... Nb4 {[%clk 0:02:15.9]}
17. Nh5 {[%clk 0:02:27.6]} 17... Ba6 {[%clk 0:02:13.6]} 18. Bxa6 {[%clk
0:02:19.2]} 18... Rxa6 {[%clk 0:02:14.5]} 19. Nd2 {[%clk 0:02:12.1]} 19... g6
{[%clk 0:02:08.5]} 20. Qg4 {[%clk 0:02:09.9]} 20... Bg5 {[%clk 0:02:03]} 21.
Bxb4 {[%clk 0:02:04.9]} 21... gxh5 {[%clk 0:01:58]} 22. Qg3 {[%clk 0:02:05]}
22... h4 {[%clk 0:01:57]} 23. Qg4 {[%clk 0:02:04.3]} 23... axb4 {[%clk
0:01:45.7]} 24. f4 {[%clk 0:02:04.4]} 24... h5 {[%clk 0:01:38.3]} 25. Qxg5+
{[%clk 0:02:00.4]} 25... Qxg5 {[%clk 0:01:38.7]} 26. fxg5 {[%clk 0:02:01.3]}
26... Rfa8 {[%clk 0:01:37.9]} 27. Rec1 {[%clk 0:01:52.1]} 27... Rxa4 {[%clk
0:01:35.5]} 28. Rxa4 {[%clk 0:01:53]} 28... Rxa4 {[%clk 0:01:36.1]} 29. Rc7
{[%clk 0:01:49.6]} 29... Nb6 {[%clk 0:01:33.7]} 30. Rb7 {[%clk 0:01:48.1]} 30...
Nc4 {[%clk 0:01:33]} 31. Nb3 {[%clk 0:01:41.9]} 31... Kg7 {[%clk 0:01:31.6]} 32.
Kf2 {[%clk 0:01:33.7]} 32... Kg6 {[%clk 0:01:30.9]} 33. Rb8 {[%clk 0:01:26.9]}
33... Ra2+ {[%clk 0:01:30.5]} 34. Kf3 {[%clk 0:01:24.4]} 34... Ra3 {[%clk
0:01:30]} 35. Rxb4 {[%clk 0:01:21.2]} 35... Rxb3+ {[%clk 0:01:29.8]} 36. Rxb3
{[%clk 0:01:22.1]} 36... Nd2+ {[%clk 0:01:30.7]} 37. Kf4 {[%clk 0:01:22.7]}
37... Nxb3 {[%clk 0:01:31.6]} 38. g3 {[%clk 0:01:22.4]} 38... hxg3 {[%clk
0:01:28.8]} 39. Kxg3 {[%clk 0:01:20.6]} 39... Kxg5 {[%clk 0:01:28.1]} 40. Kh3
{[%clk 0:01:21.5]} 40... Nxd4 {[%clk 0:01:27.8]} 41. Kg3 {[%clk 0:01:22.4]}
41... h4+ {[%clk 0:01:27.9]} 42. Kh3 {[%clk 0:01:23.1]} 42... Nf3 {[%clk
0:01:28.1]} 43. Kg2 {[%clk 0:01:24]} 43... Kf4 {[%clk 0:01:27.9]} 44. Kh3 {[%clk
0:01:24.9]} 44... d4 {[%clk 0:01:28.5]} 45. Kg2 {[%clk 0:01:25.7]} 45... d3
{[%clk 0:01:29.2]} 46. Kh3 {[%clk 0:01:26.6]} 46... d2 {[%clk 0:01:30.1]} 47.
Kg2 {[%clk 0:01:27.5]} 47... d1=Q {[%clk 0:01:30.5]} 48. Kh3 {[%clk 0:01:28.4]}
48... Qf1# {[%clk 0:01:30.7]} 0-1

[Event "*** Titled Tuesday Blitz"]
[Site "Chess.com"]
[Date "2020.04.14"]
[Round "6"]
[White "Alliswell998"]
[Black "gmkomarov"]
[Result "1/2-1/2"]
[WhiteElo "2554"]
[BlackElo "2407"]
[TimeControl "180+1"]
[EndTime "11:01:45 PDT"]
[Termination "Game drawn by agreement"]

1. d4 {[%clk 0:03:00.9]} 1... d5 {[%clk 0:02:59.3]} 2. Nc3 {[%clk 0:03:00.3]}
2... Nf6 {[%clk 0:02:58.2]} 3. Bg5 {[%clk 0:02:58.6]} 3... c5 {[%clk 0:02:56.2]}
4. e3 {[%clk 0:02:56.8]} 4... e6 {[%clk 0:02:54.5]} 5. Nf3 {[%clk 0:02:54.7]}
5... Nc6 {[%clk 0:02:54.2]} 6. Bb5 {[%clk 0:02:51.8]} 6... Bd7 {[%clk
0:02:51.7]} 7. O-O {[%clk 0:02:50.7]} 7... Be7 {[%clk 0:02:47.6]} 8. Ne5 {[%clk
0:02:46.1]} 8... O-O {[%clk 0:02:33.8]} 9. Nxd7 {[%clk 0:02:37.7]} 9... Nxd7
{[%clk 0:02:32.6]} 10. Bxe7 {[%clk 0:02:33.1]} 10... Qxe7 {[%clk 0:02:32.6]} 11.
dxc5 {[%clk 0:02:19.3]} 11... Nxc5 {[%clk 0:02:26]} 12. Qe2 {[%clk 0:02:12.8]}
12... Ne5 {[%clk 0:02:21.5]} 13. f4 {[%clk 0:02:05.5]} 13... Ned7 {[%clk
0:02:21.2]} 14. Rad1 {[%clk 0:02:02.9]} 14... Nf6 {[%clk 0:02:20.9]} 15. Bd3
{[%clk 0:02:00.1]} 15... Rfd8 {[%clk 0:02:18.5]} 16. g4 {[%clk 0:01:56.3]} 16...
Nxd3 {[%clk 0:02:10.7]} 17. cxd3 {[%clk 0:01:51.8]} 17... d4 {[%clk 0:02:09.1]}
18. exd4 {[%clk 0:01:42.1]} 18... Rxd4 {[%clk 0:02:08.7]} 19. g5 {[%clk
0:01:40.2]} 19... Nd5 {[%clk 0:02:06.3]} 20. Nxd5 {[%clk 0:01:33.4]} 20... Rxd5
{[%clk 0:02:04.7]} 21. Rf3 {[%clk 0:01:31]} 21... Rad8 {[%clk 0:01:58.7]} 22.
Rh3 {[%clk 0:01:30.4]} 22... g6 {[%clk 0:01:58.6]} 23. Qf2 {[%clk 0:01:24.6]}
23... Qc5 {[%clk 0:01:55.5]} 24. Kg2 {[%clk 0:01:15.1]} 24... Qxf2+ {[%clk
0:01:53.7]} 25. Kxf2 {[%clk 0:01:16]} 25... Rd4 {[%clk 0:01:51.6]} 26. Ke3
{[%clk 0:01:14.9]} 26... Rb4 {[%clk 0:01:48.2]} 27. Rd2 {[%clk 0:01:12.5]} 27...
Rc8 {[%clk 0:01:46.7]} 28. Rf3 {[%clk 0:01:09.9]} 28... Kf8 {[%clk 0:01:42.8]}
29. a3 {[%clk 0:01:07.5]} 29... Rb3 {[%clk 0:01:40.5]} 30. Rff2 {[%clk
0:01:06.7]} 30... Rd8 {[%clk 0:01:34.9]} 31. Ke4 {[%clk 0:01:00.2]} 31... Ke7
{[%clk 0:01:32]} 32. Rf1 {[%clk 0:00:58.6]} 32... Rc8 {[%clk 0:01:27]} 33. Rfd1
{[%clk 0:00:55.9]} 33... Rb6 {[%clk 0:01:13.9]} 1/2-1/2

[Event "*** Titled Tuesday Blitz"]
[Site "Chess.com"]
[Date "2020.04.14"]
[Round "6"]
[White "WastefulJustice"]
[Black "northridgehawk"]
[Result "1/2-1/2"]
[WhiteElo "2441"]
[BlackElo "2283"]
[TimeControl "180+1"]
[EndTime "11:01:45 PDT"]
[Termination "Game drawn by repetition"]

1. e4 {[%clk 0:03:00.9]} 1... e5 {[%clk 0:02:53.6]} 2. Nf3 {[%clk 0:03:00.4]}
2... Nc6 {[%clk 0:02:53.3]} 3. d4 {[%clk 0:02:59.2]} 3... exd4 {[%clk
0:02:53.7]} 4. Bc4 {[%clk 0:02:59.3]} 4... Nf6 {[%clk 0:02:53.9]} 5. e5 {[%clk
0:02:58.3]} 5... d5 {[%clk 0:02:53.3]} 6. Bb5 {[%clk 0:02:58.1]} 6... Ne4 {[%clk
0:02:53.6]} 7. Nxd4 {[%clk 0:02:57.4]} 7... Bd7 {[%clk 0:02:53.8]} 8. Bxc6
{[%clk 0:02:57]} 8... bxc6 {[%clk 0:02:54.7]} 9. O-O {[%clk 0:02:56.9]} 9... Bc5
{[%clk 0:02:55.4]} 10. f3 {[%clk 0:02:56.4]} 10... Ng5 {[%clk 0:02:55.5]} 11. f4
{[%clk 0:02:56.8]} 11... Bg4 {[%clk 0:02:55.3]} 12. Qxg4 {[%clk 0:02:48]} 12...
Bxd4+ {[%clk 0:02:55.1]} 13. Kh1 {[%clk 0:02:48.6]} 13... Ne4 {[%clk 0:02:56]}
14. Qxg7 {[%clk 0:02:43]} 14... Qh4 {[%clk 0:02:55.2]} 15. Nc3 {[%clk
0:01:58.5]} 15... Bxc3 {[%clk 0:02:37.1]} 16. bxc3 {[%clk 0:01:31.9]} 16...
O-O-O {[%clk 0:02:36.5]} 17. Be3 {[%clk 0:00:59.7]} 17... Rhg8 {[%clk
0:02:32.8]} 18. Qxf7 {[%clk 0:00:57.3]} 18... Ng3+ {[%clk 0:00:44.6]} 19. Kg1
{[%clk 0:00:55.5]} 19... Ne2+ {[%clk 0:00:45.5]} 20. Kh1 {[%clk 0:00:55.7]}
20... Ng3+ {[%clk 0:00:46.4]} 21. Kg1 {[%clk 0:00:55.6]} 21... Ne2+ {[%clk
0:00:47.3]} 22. Kh1 {[%clk 0:00:55.9]} 22... Ng3+ {[%clk 0:00:47.8]} 1/2-1/2

[Event "*** Titled Tuesday Blitz"]
[Site "Chess.com"]
[Date "2020.04.14"]
[Round "6"]
[White "adriangschnitzer"]
[Black "powermove"]
[Result "1-0"]
[WhiteElo "2361"]
[BlackElo "1505"]
[TimeControl "180+1"]
[EndTime "11:01:49 PDT"]
[Termination "adriangschnitzer won by checkmate"]

1. c4 {[%clk 0:03:00.9]} 1... Nf6 {[%clk 0:02:58.1]} 2. Nc3 {[%clk 0:03:00.8]}
2... e5 {[%clk 0:02:57.1]} 3. Nf3 {[%clk 0:02:59.8]} 3... Nc6 {[%clk 0:02:53.6]}
4. e3 {[%clk 0:02:59.6]} 4... d5 {[%clk 0:02:53.2]} 5. cxd5 {[%clk 0:02:59.5]}
5... Nxd5 {[%clk 0:02:52.4]} 6. Bb5 {[%clk 0:02:59.8]} 6... Nxc3 {[%clk
0:02:30.4]} 7. bxc3 {[%clk 0:02:58.4]} 7... Bd6 {[%clk 0:02:30]} 8. d4 {[%clk
0:02:58.3]} 8... exd4 {[%clk 0:02:29]} 9. cxd4 {[%clk 0:02:59.2]} 9... O-O
{[%clk 0:02:26.1]} 10. O-O {[%clk 0:02:59.2]} 10... Bg4 {[%clk 0:02:21.8]} 11.
h3 {[%clk 0:02:58.5]} 11... Bh5 {[%clk 0:02:20.8]} 12. Be2 {[%clk 0:02:57.4]}
12... Qe7 {[%clk 0:02:13.6]} 13. Rb1 {[%clk 0:02:55.3]} 13... Rab8 {[%clk
0:02:08.8]} 14. Re1 {[%clk 0:02:49]} 14... Rfd8 {[%clk 0:01:46.9]} 15. Bd2
{[%clk 0:02:42]} 15... Qf6 {[%clk 0:01:29.7]} 16. Qc2 {[%clk 0:02:32.9]} 16...
Bg6 {[%clk 0:01:23.4]} 17. Bd3 {[%clk 0:02:26.4]} 17... Bxd3 {[%clk 0:01:18.6]}
18. Qxd3 {[%clk 0:02:27.3]} 18... h6 {[%clk 0:01:17.3]} 19. Bc3 {[%clk
0:02:16.5]} 19... Qe7 {[%clk 0:00:48.4]} 20. Qc4 {[%clk 0:02:09.2]} 20... Qe4
{[%clk 0:00:39.3]} 21. Nd2 {[%clk 0:02:04.6]} 21... Qh4 {[%clk 0:00:35.6]} 22.
e4 {[%clk 0:02:01]} 22... Bf8 {[%clk 0:00:20.4]} 23. d5 {[%clk 0:01:59]} 23...
Ne7 {[%clk 0:00:18.7]} 24. Qxc7 {[%clk 0:01:37.4]} 24... Rdc8 {[%clk 0:00:17.9]}
25. Qe5 {[%clk 0:01:36.1]} 25... Ng6 {[%clk 0:00:17]} 26. Qd4 {[%clk 0:01:33.8]}
26... Bc5 {[%clk 0:00:16.9]} 27. Qxg7# {[%clk 0:01:33]} 1-0